fUSD/lending_fUSD_20250322
["ID","MTS","AMOUNT","RATE_DAILY","PERIOD"]
[356544167,1742637079246,-1288.21,0.00048493,120]
[356544168,1742637079256,-500.0,0.00048493,120]
[356544169,1742637079266,-3623.73,0.00048493,120]
[356544170,1742637079275,-1914.19,0.00048493,120]
[356544171,1742637079285,-1583.29,0.00048493,120]
[356544172,1742637079294,-500.0,0.00048493,120]
[356544173,1742637079304,-1724.46,0.00048493,120]
[356544174,1742637079313,-2003.91,0.00048493,100]
[356544175,1742637079322,-1585.84,0.00048493,120]
[356544176,1742637079332,-500.0,0.00048493,120]
[356544177,1742637079344,-2253.09,0.00048493,120]
[356544178,1742637079353,-500.0,0.00048493,120]
[356544179,1742637079362,-500.0,0.00048493,120]
[356544180,1742637079371,-645.37,0.00048493,120]
[356544181,1742637079380,-691.36,0.00048493,120]
[356544182,1742637079390,-817.6,0.00048493,120]
[356544183,1742637079399,-523.41,0.00048493,120]
[356544184,1742637079408,-1609.26,0.00048493,120]
[356544185,1742637079418,-1857.45,0.00048493,120]
[356544186,1742637079427,-1181.24,0.00048493,120]
[356544187,1742637079436,-592.73,0.00048493,120]
[356544188,1742637079445,-1111.56,0.00048493,120]
[356544189,1742637079455,-500.0,0.00048493,120]
[356544190,1742637079465,-500.0,0.00048493,120]
[356544191,1742637079474,-1095.08,0.00048493,120]
[356544192,1742637079483,-1041.52,0.00048493,120]
[356544193,1742637079491,-500.0,0.00048493,120]
[356544194,1742637079500,-624.9,0.00048493,120]
[356544195,1742637079510,-796.13,0.00048493,120]
[356544196,1742637079519,-751.81,0.00048493,120]
[356544197,1742637079528,-722.59,0.00048493,120]
[356544198,1742637079538,-500.0,0.00048493,120]
[356544199,1742637079548,-554.28,0.00048493,120]
[356544200,1742637079558,-555.78,0.00048493,120]
[356544201,1742637079567,-500.0,0.00048493,120]
[356544202,1742637079576,-3273.79,0.00048493,120]
[356544203,1742637079586,-2930.96,0.00048493,120]
[356544204,1742637079595,-1052.7,0.00048493,120]
[356544205,1742637079605,-504.22,0.00048493,120]
[356544206,1742637079614,-500.0,0.00048493,120]
[356544207,1742637079624,-1485.55,0.00048493,120]
[356544208,1742637079634,-504.42,0.00048493,120]
[356544209,1742637079644,-500.0,0.00048493,120]
[356544210,1742637079653,-1080.77,0.00048493,120]
[356544211,1742637079664,-657.13,0.00048493,120]
[356544212,1742637079673,-500.0,0.00048493,120]
[356544213,1742637079682,-500.0,0.00048493,120]
[356544214,1742637079691,-517.31,0.00048493,120]
[356544215,1742637079700,-760.27,0.00048493,120]
[356544216,1742637079710,-899.53,0.00048493,120]
[356544217,1742637079720,-500.0,0.00048493,120]
[356544218,1742637079731,-500.0,0.00048493,120]
[356544219,1742637079740,-692.39,0.00048493,120]
[356544220,1742637079749,-500.0,0.00048493,120]
[356544221,1742637079759,-555.67,0.00048493,120]
[356544222,1742637079768,-500.0,0.00048493,120]
[356544223,1742637079778,-1026.62,0.00048493,120]
[356544224,1742637079787,-1504.12,0.00048493,120]
[356544225,1742637079796,-655.7,0.00048493,120]
[356544226,1742637079805,-500.0,0.00048493,120]
[356544227,1742637079814,-668.14,0.00048493,120]
[356544228,1742637079823,-500.0,0.00048493,20]
[356544229,1742637079833,-529.96,0.00048493,120]
[356544230,1742637079842,-1785.62,0.00048493,120]
[356544231,1742637079852,-56672.48,0.00048493,120]
[356544232,1742637079861,-500.0,0.00048493,120]
[356544233,1742637079871,-874.3,0.00048493,120]
[356544234,1742637079880,-500.0,0.00048493,120]
[356544235,1742637079889,-892.9,0.00048493,120]
[356544236,1742637079899,-507.98,0.00048493,120]
[356544237,1742637079908,-767.43,0.00048493,120]
[356544238,1742637079918,-818.49,0.00048493,120]
[356544239,1742637079927,-574.58,0.00048493,120]
[356544240,1742637079936,-622.98,0.00048493,120]
[356544241,1742637079945,-1187.99,0.00048493,120]
[356544242,1742637079955,-468.42513482,0.00048493,120]
[356544243,1742637079964,-594.34,0.00048493,120]
[356544244,1742637079973,-500.0,0.00048493,120]
[356544245,1742637079983,-724.76,0.00048493,120]
[356544246,1742637079992,-500.0,0.00048493,120]
[356544247,1742637080001,-554.79,0.00048493,120]
[356544248,1742637080010,-500.0,0.00048493,120]
[356544249,1742637080019,-864.88,0.00048493,120]
[356544250,1742637080029,-664.62,0.00048493,120]
[356544251,1742637080039,-870.55,0.00048493,120]
[356544252,1742637080048,-500.0,0.00048493,120]
[356544253,1742637080057,-3152.52,0.00048493,120]
[356544254,1742637080067,-1001.37,0.00048493,120]
[356544255,1742637080076,-507.786,0.00048493,120]
[356544256,1742637080086,-502.77259981,0.0004856,60]
[356544257,1742637080095,-20000.0,0.0004876,7]
[356544258,1742637080104,-500.0,0.00048766,120]
[356544259,1742637080113,-644.01,0.00048766,120]
[356544260,1742637080123,-904.785999,0.00048767,120]
[356544261,1742637080132,-733.844647,0.00048767,120]
[356544262,1742637080141,-500.0,0.00048767,120]
[356544263,1742637080150,-500.0,0.00048767,120]
[356544264,1742637080159,-265.15460274,0.00048767,120]
[356544265,1742637080170,-739.16,0.00048767,120]
[356544266,1742637080180,-500.0,0.00048767,120]
[356544267,1742637080189,-500.0,0.00048767,120]
[356544268,1742637080198,-500.0,0.00048767,120]
[356544269,1742637080208,-500.0,0.00048767,120]
[356544270,1742637080217,-950.82,0.00048767,120]
[356544271,1742637080227,-500.0,0.00048767,120]
[356544272,1742637080236,-517.63,0.00048767,120]
[356544273,1742637080245,-1049.72,0.00048767,120]
[356544274,1742637080255,-653.69,0.00048767,120]
[356544275,1742637080264,-907.89,0.00048767,120]
[356544276,1742637080273,-600.62,0.00048767,120]
[356544277,1742637080283,-500.0,0.00048767,120]
[356544278,1742637080293,-500.0,0.00048767,120]
[356544279,1742637080302,-500.0,0.00048767,120]
[356544280,1742637080312,-500.0,0.00048767,120]
[356544281,1742637080322,-615.18,0.00048767,120]
[356544282,1742637080331,-500.0,0.00048767,120]
[356544283,1742637080345,-500.0,0.00048767,120]
[356544284,1742637080355,-500.0,0.00048767,120]
[356544285,1742637080364,-500.0,0.00048767,120]
[356544286,1742637080375,-500.0,0.00048767,120]
[356544287,1742637080384,-393.05706415,0.00048767,120]
[356544288,1742637080393,-501.22,0.00048767,120]
[356544289,1742637080403,-500.0,0.00048767,120]
[356544290,1742637080414,-500.0,0.00048767,120]
[356544291,1742637080424,-761.07,0.00048767,120]
[356544292,1742637080434,-956.79,0.00048767,120]
[356544293,1742637080444,-500.0,0.00048767,120]
[356544294,1742637080454,-500.0,0.00048767,120]
[356544295,1742637080463,-963.36,0.00048767,60]
[356544296,1742637080472,-782.21,0.00048767,120]
[356544297,1742637080482,-500.0,0.00048767,120]
[356544298,1742637080492,-584.06,0.00048767,120]
[356544299,1742637080501,-500.0,0.00048767,2]
[356544300,1742637080511,-673.59,0.00048767,120]
[356544301,1742637080521,-500.0,0.00048767,120]
[356544302,1742637080530,-502.51,0.00048767,120]
[356544303,1742637080540,-500.0,0.00048767,120]
[356544304,1742637080549,-1473.31,0.00048767,120]
[356544305,1742637080559,-500.0,0.00048767,120]
[356544306,1742637080569,-500.0,0.00048767,120]
[356544307,1742637080578,-751.46,0.00048767,120]
[356544308,1742637080589,-1642.39,0.00048767,120]
[356544309,1742637080598,-654.04,0.00048767,120]
[356544310,1742637080608,-674.52,0.00048767,120]
[356544311,1742637080618,-520.54,0.00048767,120]
[356544312,1742637080627,-500.0,0.00048767,120]
[356544313,1742637080636,-500.0,0.00048767,120]
[356544314,1742637080645,-781.34,0.00048767,120]
[356544315,1742637080655,-500.0,0.00048767,120]
[356544316,1742637080664,-532.16,0.00048767,120]
[356544317,1742637080674,-500.0,0.00048767,120]
[356544318,1742637080683,-500.0,0.00048767,120]
[356544319,1742637080694,-601.78,0.00048767,120]
[356544320,1742637080703,-691.76,0.00048767,120]
[356544321,1742637080714,-500.0,0.00048767,120]
[356544322,1742637080724,-802.29,0.00048767,120]
[356544323,1742637080734,-500.0,0.00048767,120]
[356544324,1742637080743,-500.0,0.00048767,120]
[356544325,1742637080753,-580.53,0.00048767,120]
[356544326,1742637080762,-2210.41,0.00048767,120]
[356544327,1742637080771,-904.56,0.00048767,120]
[356544328,1742637080781,-500.0,0.00048767,120]
[356544329,1742637080791,-500.0,0.00048767,120]
[356544330,1742637080971,-793.91,0.00048767,120]
[356544331,1742637080980,-706.55,0.00048767,120]
[356544332,1742637080990,-834.3,0.00048767,120]
[356544333,1742637080999,-671.78,0.00048767,120]
[356544334,1742637081009,-500.0,0.00048767,120]
[356544335,1742637081018,-500.0,0.00048767,120]
[356544336,1742637081027,-1807.75,0.00048767,120]
[356544337,1742637081036,-500.0,0.00048767,120]
[356544338,1742637081045,-842.88,0.00048767,120]
[356544339,1742637081055,-500.0,0.00048767,120]
[356544340,1742637081064,-500.0,0.00048767,120]
[356544341,1742637081073,-500.0,0.00048767,120]
[356544342,1742637081082,-350.0,0.00048767,120]
[356544343,1742637081092,-965.16,0.00048767,120]
[356544344,1742637081101,-591.6,0.00048767,120]
[356544345,1742637081110,-1371.05,0.00048767,120]
[356544346,1742637081119,-1325.26,0.00048767,120]
[356544347,1742637081129,-558.56,0.00048767,120]
[356544348,1742637081138,-874.61,0.00048767,120]
[356544349,1742637081148,-902.88,0.00048767,120]
[356544350,1742637081157,-509.55,0.00048767,120]
[356544351,1742637081167,-500.0,0.00048767,120]
[356544352,1742637081177,-500.0,0.00048767,120]
[356544353,1742637081187,-500.0,0.00048767,120]
[356544354,1742637081196,-937.33,0.00048767,120]
[356544355,1742637081206,-500.0,0.00048767,120]
[356544356,1742637081215,-500.0,0.00048767,120]
[356544357,1742637081224,-1062.3,0.00048767,120]
[356544358,1742637081234,-600.78,0.00048767,120]
[356544359,1742637081243,-664.64,0.00048767,120]
[356544360,1742637081253,-668.71,0.00048767,120]
[356544361,1742637081262,-564.64,0.00048767,120]
[356544362,1742637081271,-1070.64,0.00048767,120]
[356544363,1742637081281,-979.48,0.00048767,120]
[356544364,1742637081290,-800.83,0.00048767,120]
[356544365,1742637081299,-500.0,0.00048767,120]
[356544366,1742637081308,-698.39,0.00048767,120]
[356544367,1742637081318,-500.0,0.00048767,120]
[356544368,1742637081328,-680.79,0.00048767,120]
[356544369,1742637081339,-514.68,0.00048767,120]
[356544370,1742637081349,-536.4,0.00048767,120]
[356544371,1742637081359,-500.0,0.00048767,120]
[356544372,1742637081368,-500.0,0.00048767,120]
[356544373,1742637081377,-500.0,0.00048767,120]
[356544374,1742637081387,-500.0,0.00048767,120]
[356544375,1742637081397,-500.0,0.00048767,120]
[356544376,1742637081406,-661.88,0.00048767,120]
[356544377,1742637081415,-500.0,0.00048767,120]
[356544378,1742637081424,-500.0,0.00048767,120]
[356544379,1742637081434,-500.0,0.00048767,120]
[356544380,1742637081444,-730.9,0.00048767,120]
[356544381,1742637081453,-1058.49,0.00048767,120]
[356544382,1742637081463,-500.0,0.00048767,120]
[356544383,1742637081472,-1233.22,0.00048767,120]
[356544384,1742637081481,-1327.63,0.00048767,120]
[356544385,1742637081491,-520.32,0.00048767,120]
[356544386,1742637081500,-896.4,0.00048767,120]
[356544387,1742637081510,-1347.94,0.00048767,120]
[356544388,1742637081519,-597.81,0.00048767,120]
[356544389,1742637081528,-788.73,0.00048767,120]
[356544390,1742637081538,-500.0,0.00048767,120]
[356544391,1742637081547,-500.0,0.00048767,120]
[356544392,1742637081556,-2023.49,0.00048767,120]
[356544393,1742637081567,-625.69,0.00048767,120]
[356544394,1742637081576,-1415.42,0.00048767,120]
[356544395,1742637081586,-556.5,0.00048767,120]
[356544396,1742637081596,-839.81,0.00048767,120]
[356544397,1742637081605,-500.0,0.00048767,120]
[356544398,1742637081614,-813.54,0.00048767,120]
[356544399,1742637081624,-570.18,0.00048767,120]
[356544400,1742637081633,-500.0,0.00048767,120]
[356544401,1742637081642,-500.0,0.00048767,120]
[356544402,1742637081652,-500.0,0.00048767,120]
[356544403,1742637081661,-500.0,0.00048767,120]
[356544404,1742637081671,-621.41,0.00048767,120]
[356544405,1742637081680,-300.0,0.00048767,120]
[356544406,1742637081690,-713.81,0.00048767,120]
[356544407,1742637081700,-500.0,0.00048767,120]
[356544408,1742637081709,-500.0,0.00048767,120]
[356544409,1742637081719,-1159.44,0.00048767,10]
[356544410,1742637081729,-639.03,0.00048767,120]
[356544411,1742637081738,-500.0,0.00048767,120]
[356544412,1742637081748,-521.66,0.00048767,120]
[356544413,1742637081758,-1837.38,0.00048767,120]
[356544414,1742637081767,-407.76382921,0.00048767,120]
[356544415,1742637081777,-500.0,0.00048767,120]
[356544416,1742637081786,-500.0,0.00048767,120]
[356544417,1742637081796,-500.0,0.00048767,120]
[356544418,1742637081806,-500.0,0.00048767,120]
[356544419,1742637081816,-500.0,0.00048767,120]
[356544420,1742637081826,-500.0,0.00048767,120]
[356544421,1742637081835,-872.68,0.00048767,120]
[356544422,1742637081844,-603.16442709,0.00048767,120]
[356544423,1742637081854,-500.0,0.00048767,120]
[356544424,1742637081863,-815.59,0.00048767,120]
[356544425,1742637081872,-564.59,0.00048767,120]
[356544426,1742637081882,-500.0,0.00048767,120]
[356544427,1742637081891,-500.0,0.00048767,120]
[356544428,1742637081900,-500.0,0.00048767,120]
[356544429,1742637081910,-500.0,0.00048767,120]
[356544430,1742637081920,-629.6,0.00048767,120]
[356544431,1742637081929,-1219.87,0.00048767,120]
[356544432,1742637081939,-511.1,0.00048767,120]
[356544433,1742637081948,-500.0,0.00048767,120]
[356544434,1742637081958,-500.0,0.00048767,120]
[356544435,1742637081967,-500.0,0.00048767,120]
[356544436,1742637081976,-500.0,0.00048767,120]
[356544437,1742637081985,-973.06,0.00048767,120]
[356544438,1742637081994,-500.0,0.00048767,120]
[356544439,1742637082004,-624.39,0.00048767,120]
[356544440,1742637082013,-500.0,0.00048767,120]
[356544441,1742637082022,-1923.34,0.00048767,120]
[356544442,1742637082031,-500.0,0.00048767,120]
[356544443,1742637082040,-820.19,0.00048767,120]
[356544444,1742637082050,-564.23,0.00048767,120]
[356544445,1742637082060,-665.21,0.00048767,120]
[356544446,1742637082069,-500.0,0.00048767,120]
[356544447,1742637082078,-500.0,0.00048767,120]
[356544448,1742637082088,-1241.85,0.00048767,120]
[356544449,1742637082097,-500.0,0.00048767,120]
[356544450,1742637082105,-619.76,0.00048767,120]
[356544451,1742637082115,-500.0,0.00048767,120]
[356544452,1742637082124,-500.0,0.00048767,120]
[356544453,1742637082134,-591.13,0.00048767,120]
[356544454,1742637082144,-500.0,0.00048767,60]
[356544455,1742637082154,-500.0,0.00048767,120]
[356544456,1742637082163,-500.0,0.00048767,120]
[356544457,1742637082173,-611.96,0.00048767,120]
[356544458,1742637082183,-500.0,0.00048767,120]
[356544459,1742637082192,-645.8,0.00048767,120]
[356544460,1742637082202,-529.2,0.00048767,120]
[356544461,1742637082210,-500.0,0.00048767,120]
[356544462,1742637082220,-601.81,0.00048767,120]
[356544463,1742637082229,-641.64,0.00048767,120]
[356544464,1742637082238,-640.55,0.00048767,120]
[356544465,1742637082247,-500.0,0.00048767,120]
[356544466,1742637082257,-500.0,0.00048767,120]
[356544467,1742637082266,-627.71,0.00048767,120]
[356544468,1742637082275,-701.19,0.00048767,120]
[356544469,1742637082284,-1353.99,0.00048767,120]
[356544470,1742637082294,-500.0,0.00048767,120]
[356544471,1742637082303,-500.0,0.00048767,120]
[356544472,1742637082313,-500.0,0.00048767,120]
[356544473,1742637082322,-658.79,0.00048767,120]
[356544474,1742637082331,-1518.81,0.00048767,120]
[356544475,1742637082345,-381.96517231,0.00048767,120]
[356544476,1742637082354,-1579.16,0.00048767,120]
[356544477,1742637082364,-842.72,0.00048767,120]
[356544478,1742637082373,-500.0,0.00048767,120]
[356544479,1742637082384,-1920.4,0.00048767,120]
[356544480,1742637082394,-500.0,0.00048767,120]
[356544481,1742637082403,-500.0,0.00048767,120]
[356544482,1742637082413,-500.0,0.00048767,120]
[356544483,1742637082424,-5245.81,0.00048767,120]
[356544484,1742637082434,-500.0,0.00048767,120]
[356544485,1742637082444,-2131.02,0.00048767,120]
[356544486,1742637082453,-500.0,0.00048767,120]
[356544487,1742637082462,-983.72,0.00048767,120]
[356544488,1742637082472,-500.0,0.00048767,120]
[356544489,1742637082481,-1445.99,0.00048767,120]
[356544490,1742637082491,-585.87,0.00048767,120]
[356544491,1742637082500,-689.75,0.00048767,120]
[356544492,1742637082509,-500.0,0.00048767,120]
[356544493,1742637082518,-500.0,0.00048767,120]
[356544494,1742637082528,-846.6,0.00048767,120]
[356544495,1742637082537,-587.36,0.00048767,120]
[356544496,1742637082548,-635.78,0.00048767,120]
[356544497,1742637082557,-1413.44,0.00048767,120]
[356544498,1742637082567,-500.0,0.00048767,120]
[356544499,1742637082576,-4235.9,0.00048767,2]
[356544500,1742637082586,-500.0,0.00048767,120]
[356544501,1742637082595,-500.0,0.00048767,120]
[356544502,1742637082604,-1454.51,0.00048767,120]
[356544503,1742637082613,-500.0,0.00048767,120]
[356544504,1742637082623,-500.0,0.00048767,120]
[356544505,1742637082632,-500.0,0.00048767,120]
[356544506,1742637082642,-970.54,0.00048767,120]
[356544507,1742637082652,-586.12,0.00048767,120]
[356544508,1742637082662,-500.0,0.00048767,120]
[356544509,1742637082671,-635.48,0.00048767,120]
[356544510,1742637082680,-647.73,0.00048767,120]
[356544511,1742637082689,-996.39,0.00048767,120]
[356544512,1742637082699,-1824.31,0.00048767,120]
[356544513,1742637082708,-500.0,0.00048767,120]
[356544514,1742637082717,-833.59,0.00048767,120]
[356544515,1742637082726,-354.17186472,0.00048767,120]
[356544516,1742637082736,-809.31,0.00048767,120]
[356544517,1742637082745,-2000.27,0.00048767,120]
[356544518,1742637082755,-1128.13,0.00048767,120]
[356544519,1742637082765,-205.85,0.00048767,7]
[356544520,1742637082774,-2750.71,0.00048767,120]
[356544521,1742637082783,-500.0,0.00048767,120]
[356544522,1742637082793,-500.0,0.00048767,120]
[356544523,1742637082802,-972.4,0.00048767,120]
[356544524,1742637082811,-912.87,0.00048767,120]
[356544525,1742637082820,-3375.17,0.00048767,120]
[356544526,1742637082830,-558.47,0.00048767,120]
[356544527,1742637082839,-1367.27,0.00048767,120]
[356544528,1742637082849,-743.38,0.00048767,120]
[356544529,1742637082858,-520.84,0.00048767,120]
[356544530,1742637082868,-500.0,0.00048767,120]
[356544531,1742637082877,-1219.57,0.00048767,120]
[356544532,1742637082887,-500.0,0.00048767,120]
[356544533,1742637082896,-500.0,0.00048767,120]
[356544534,1742637082905,-2818.72,0.00048767,120]
[356544535,1742637082914,-825.87,0.00048767,120]
[356544536,1742637082924,-500.0,0.00048767,120]
[356544537,1742637082934,-635.13,0.00048767,120]
[356544538,1742637082943,-827.5,0.00048767,120]
[356544539,1742637082952,-695.68,0.00048767,120]
[356544540,1742637082962,-500.0,0.00048767,120]
[356544541,1742637082971,-666.85,0.00048767,120]
[356544542,1742637082979,-606.96,0.00048767,120]
[356544543,1742637082988,-500.0,0.00048767,120]
[356544544,1742637082997,-1356.69,0.00048767,7]
[356544545,1742637083007,-1736.83,0.00048767,120]
[356544546,1742637083016,-913.27,0.00048767,120]
[356544547,1742637083026,-599.99,0.00048767,120]
[356544548,1742637083035,-500.0,0.00048767,120]
[356544549,1742637083044,-527.15,0.00048767,120]
[356544550,1742637083056,-500.0,0.00048767,120]
[356544551,1742637083066,-597.23,0.00048767,120]
[356544552,1742637083075,-501.82,0.00048767,120]
[356544553,1742637083085,-1106.0,0.00048767,120]
[356544554,1742637083094,-882.82,0.00048767,120]
[356544555,1742637083103,-500.0,0.00048767,120]
[356544556,1742637083112,-1127.56,0.00048767,120]
[356544557,1742637083122,-1089.93,0.00048767,7]
[356544558,1742637083132,-500.0,0.00048767,120]
[356544559,1742637083141,-502.2,0.00048767,120]
[356544560,1742637083151,-500.0,0.00048767,120]
[356544561,1742637083160,-1068.57,0.00048767,120]
[356544562,1742637083170,-1131.58,0.00048767,120]
[356544563,1742637083179,-529.97,0.00048767,120]
[356544564,1742637083188,-500.0,0.00048767,120]
[356544565,1742637083198,-559.18,0.00048767,120]
[356544566,1742637083208,-500.0,0.00048767,120]
[356544567,1742637083218,-1578.59,0.00048767,120]
[356544568,1742637083228,-5060.41,0.00048767,120]
[356544569,1742637083238,-500.0,0.00048767,120]
[356544570,1742637083247,-500.0,0.00048767,120]
[356544571,1742637083258,-938.19,0.00048767,120]
[356544572,1742637083267,-567.38,0.00048767,120]
[356544573,1742637083277,-617.69,0.00048767,120]
[356544574,1742637083287,-1439.24,0.00048767,120]
[356544575,1742637083297,-1288.21,0.00048767,120]
[356544576,1742637083306,-500.0,0.00048767,120]
[356544577,1742637083316,-3623.73,0.00048767,120]
[356544578,1742637083326,-1914.19,0.00048767,120]
[356544579,1742637083337,-1583.29,0.00048767,120]
[356544580,1742637083348,-283.11796184,0.00048767,120]
[356544581,1742637083357,-1724.46,0.00048767,120]
[356544582,1742637083367,-2003.91,0.00048767,100]
[356544583,1742637083376,-1585.84,0.00048767,120]
[356544584,1742637083385,-500.0,0.00048767,120]
[356544585,1742637083394,-2253.09,0.00048767,120]
[356544586,1742637083403,-500.0,0.00048767,120]
[356544587,1742637083412,-500.0,0.00048767,120]
[356544588,1742637083423,-645.37,0.00048767,120]
[356544589,1742637083433,-691.36,0.00048767,120]
[356544590,1742637083442,-817.6,0.00048767,120]
[356544591,1742637083451,-523.41,0.00048767,120]
[356544592,1742637083461,-1609.26,0.00048767,120]
[356544593,1742637083471,-1857.45,0.00048767,120]
[356544594,1742637083481,-1181.24,0.00048767,120]
[356544595,1742637083491,-592.73,0.00048767,120]
[356544596,1742637083500,-1111.56,0.00048767,120]
[356544597,1742637083510,-500.0,0.00048767,120]
[356544598,1742637083520,-500.0,0.00048767,120]
[356544599,1742637083529,-1095.08,0.00048767,120]
[356544600,1742637083539,-1041.52,0.00048767,120]
[356544601,1742637083548,-500.0,0.00048767,120]
[356544602,1742637083557,-624.9,0.00048767,120]
[356544603,1742637083567,-796.13,0.00048767,120]
[356544604,1742637083577,-751.81,0.00048767,120]
[356544605,1742637083587,-722.59,0.00048767,120]
[356544606,1742637083596,-500.0,0.00048767,120]
[356544607,1742637083606,-554.28,0.00048767,120]
[356544608,1742637083615,-555.78,0.00048767,120]
[356544609,1742637083624,-500.0,0.00048767,120]
[356544610,1742637083633,-3273.79,0.00048767,120]
[356544611,1742637083643,-2930.96,0.00048767,120]
[356544612,1742637083653,-1052.7,0.00048767,120]
[356544613,1742637083662,-504.22,0.00048767,120]
[356544614,1742637083673,-500.0,0.00048767,120]
[356544615,1742637083683,-1485.55,0.00048767,120]
[356544616,1742637083692,-504.42,0.00048767,120]
[356544617,1742637083702,-500.0,0.00048767,120]
[356544618,1742637083711,-1080.77,0.00048767,120]
[356544619,1742637083721,-657.13,0.00048767,120]
[356544620,1742637083731,-500.0,0.00048767,120]
[356544621,1742637083739,-500.0,0.00048767,120]
[356544622,1742637083749,-517.31,0.00048767,120]
[356544623,1742637083758,-760.27,0.00048767,120]
[356544624,1742637083768,-899.53,0.00048767,120]
[356544625,1742637083777,-500.0,0.00048767,120]
[356544626,1742637083787,-500.0,0.00048767,120]
[356544627,1742637083796,-692.39,0.00048767,120]
[356544628,1742637083806,-500.0,0.00048767,120]
[356544629,1742637083815,-500.0,0.00048767,120]
[356544630,1742637083824,-555.67,0.00048767,120]
[356544631,1742637083834,-1026.62,0.00048767,120]
[356544632,1742637083843,-1504.12,0.00048767,120]
[356544633,1742637083852,-655.7,0.00048767,120]
[356544634,1742637083861,-500.0,0.00048767,120]
[356544635,1742637083870,-668.14,0.00048767,120]
[356544636,1742637083879,-500.0,0.00048767,20]
[356544637,1742637083889,-529.96,0.00048767,120]
[356544638,1742637083898,-1785.62,0.00048767,120]
[356544639,1742637083907,-56672.48,0.00048767,120]
[356544640,1742637083917,-500.0,0.00048767,120]
[356544641,1742637083927,-874.3,0.00048767,120]
[356544642,1742637083936,-500.0,0.00048767,120]
[356544643,1742637083945,-892.9,0.00048767,120]
[356544644,1742637083954,-507.98,0.00048767,120]
[356544645,1742637083963,-767.43,0.00048767,120]
[356544646,1742637083972,-818.49,0.00048767,120]
[356544647,1742637083981,-574.58,0.00048767,120]
[356544648,1742637083991,-622.98,0.00048767,120]
[356544649,1742637084001,-1187.99,0.00048767,120]
[356544650,1742637084010,-594.34,0.00048767,120]
[356544651,1742637084020,-500.0,0.00048767,120]
[356544652,1742637084029,-724.76,0.00048767,120]
[356544653,1742637084038,-500.0,0.00048767,120]
[356544654,1742637084047,-554.79,0.00048767,120]
[356544655,1742637084057,-500.0,0.00048767,120]
[356544656,1742637084066,-864.88,0.00048767,120]
[356544657,1742637084075,-664.62,0.00048767,120]
[356544658,1742637084084,-870.55,0.00048767,120]
[356544659,1742637084093,-500.0,0.00048767,120]
[356544660,1742637084102,-3152.52,0.00048767,120]
[356544661,1742637084111,-1001.37,0.00048767,120]
[356544662,1742637084120,-500.0,0.0004877,120]
[356544663,1742637084129,-644.01,0.00048799,120]
[356544664,1742637084306,-644.01,0.00048799,120]
[356544665,1742637084316,-210.04518618,0.000488,120]
[356544666,1742637084326,-248147.36691367,0.000488,120]